fUSD/lending_fUSD_20260405
["ID","MTS","AMOUNT","RATE_DAILY","PERIOD"]
[419759133,1775357456180,-151.5467984,0.00015935,2]
[419759134,1775357456189,-150.0,0.0001594,2]
[419759135,1775357456198,-150.0,0.00015947,2]
[419759136,1775357456208,-150.0,0.00015949,2]
[419759137,1775357456217,-151.5467984,0.00015952,2]
[419759138,1775357456227,-440.0,0.00015953,2]
[419759139,1775357456237,-150.0,0.00015954,2]
[419759140,1775357456246,-1337.87763051,0.00015956,2]
[419759141,1775357456256,-150.0,0.00015958,2]
[419759142,1775357456265,-150.0,0.0001596,2]
[419759143,1775357456275,-151.5467984,0.00015968,2]
[419759144,1775357456284,-150.0,0.00015975,2]
[419759145,1775357456294,-150.0,0.00015977,2]
[419759146,1775357456303,-150.0,0.0001598,2]
[419759147,1775357456312,-151.5467984,0.00015984,2]
[419759148,1775357456321,-1301.46991205,0.00015986,2]
[419759149,1775357456331,-440.0,0.00015986,2]
[419759150,1775357456340,-440.0,0.00015992,2]
[419759151,1775357456350,-440.0,0.00015992,2]
[419759152,1775357456359,-169.060909,0.00015997,2]
[419759153,1775357456368,-169.060909,0.00015997,2]
[419759154,1775357456377,-169.060909,0.00015997,2]
[419759155,1775357456387,-1299.3290203,0.00015998,2]
[419759156,1775357456396,-245.0843554,0.00016,2]
[419759157,1775357456406,-150.14541726,0.00016,2]
[419759158,1775357456416,-151.5467984,0.00016,2]
[419759159,1775357456425,-150.17540857,0.00016,2]
[419759160,1775357456435,-151.90807937,0.00016,2]
[419759161,1775357456444,-150.60277619,0.00016,2]
[419759162,1775357456454,-287.38140471,0.00016,2]
[419759163,1775357456463,-151.22967101,0.00016,2]
[419759164,1775357456473,-154.07899059,0.00016,2]
[419759165,1775357456483,-154.24536523,0.00016,2]
[419759166,1775357456492,-151.75828689,0.00016,2]
[419759167,1775357456502,-3637663.47756438,0.00016,2]
[419759168,1775357456511,-45709.55949389,0.00016,2]
[419759169,1775357456521,-515722.89545191,0.00016,2]
[419759170,1775357457436,-1073.32996694,0.00016,2]
[419759171,1775357457702,-2000.0,0.00013795,2]
[419759172,1775357457711,-5487.84382139,0.00016,2]
[419759173,1775357458744,-2000.0,0.00013795,2]
[419759174,1775357458754,-2227.639439,0.00013892,2]
[419759175,1775357458764,-140102.02596114,0.00016,2]
[419759176,1775357458776,-271.96277641,0.00016,2]
[419759177,1775357458835,-483.00119782,0.00016,2]
[419759178,1775357459667,-209.19812795,0.00012956,2]
[419759179,1775357459677,-62785.68546563,0.00016,2]
[419759180,1775357459720,-9083.67844698,0.00016,2]
[419759203,1775358119605,1357.99078211,9.843e-05,2]
[419759238,1775358631514,-174.08,0.0001096,2]
[419759239,1775358631524,-231.13062676,0.00011,2]
[419759240,1775358631535,-1125.14410807,0.00011,2]
[419759241,1775358631546,-4355.63615601,0.00011,2]
[419759242,1775358631556,-1200.0,0.00011992,2]
[419759243,1775358631565,-193.45489256,0.00012056,2]
[419759244,1775358631575,-600.0,0.00012056,2]
[419759245,1775358631585,-300.0,0.00012056,2]
[419759246,1775358631595,-250.0,0.00012056,2]
[419759247,1775358631604,-1600.0,0.00012243,2]
[419759248,1775358631613,-500.0,0.00012355,2]
[419759249,1775358631623,-309.90283068,0.000125,2]
[419759250,1775358631632,-151.53,0.00012616,2]
[419759251,1775358631642,-9404.61812408,0.0001266,2]
[419759252,1775358631651,-150.0,0.00012669,2]
[419759253,1775358631661,-6531.85034429,0.0001267,2]
[419759254,1775358631670,-5579.29094289,0.0001267,2]
[419759255,1775358631680,-2325.1708,0.0001267,2]
[419759257,1775358631689,-58320.4956,0.0001267,2]
[419759259,1775358631699,-2500.0,0.0001267,2]
[419759261,1775358631709,-150.99,0.00012682,2]
[419759262,1775358631719,-500.0,0.00012682,2]
[419759263,1775358631729,-500.0,0.00012682,2]
[419759265,1775358631738,-500.0,0.00012682,2]
[419759267,1775358631748,-500.0,0.00012682,2]
[419759268,1775358631757,-500.0,0.00012682,2]
[419759270,1775358631767,-500.0,0.00012682,2]
[419759271,1775358631777,-500.0,0.00012682,2]
[419759272,1775358631786,-500.0,0.00012682,2]
[419759273,1775358631795,-500.0,0.00012682,2]
[419759274,1775358631805,-500.0,0.00012682,2]
[419759275,1775358631815,-500.0,0.00012682,2]
[419759276,1775358631824,-500.0,0.00012682,2]
[419759277,1775358631834,-500.0,0.00012682,2]
[419759279,1775358631844,-500.0,0.00012682,2]
[419759281,1775358631854,-338.88469698,0.00012682,2]
[419759282,1775358631864,-500.0,0.00012682,2]
[419759283,1775358631875,-6527.488,0.00012683,2]
[419759284,1775358631885,-270.323,0.00012683,2]
[419759285,1775358631894,-200.0,0.00012765,2]
[419759286,1775358631904,-151.0,0.00012765,2]
[419759287,1775358631914,-151.0,0.00012765,2]
[419759288,1775358631923,-151.0,0.00012765,2]
[419759289,1775358631933,-151.0,0.00012765,2]
[419759290,1775358631943,-151.0,0.00012765,2]
[419759291,1775358631954,-151.0,0.00012765,2]
[419759292,1775358631963,-151.0,0.00012765,2]
[419759293,1775358631973,-151.0,0.00012765,2]
[419759294,1775358631983,-151.0,0.00012765,2]
[419759295,1775358631992,-151.0,0.00012765,2]
[419759296,1775358632001,-151.0,0.00012765,2]
[419759297,1775358632011,-1438.09495884,0.00012765,2]
[419759298,1775358632020,-38911.82703002,0.0001277,2]
[419759299,1775358632056,-2854.920635,0.0001277,2]
[419759300,1775358632086,-746.42303821,0.0001277,2]
[419759301,1775358632109,-700.36150344,0.0001277,2]
[419759323,1775358638236,-1559.99999991,0.000126,5]
[419759333,1775358640064,-670.59943,0.000126,5]
[419759334,1775358640145,-3302.40057009,0.000126,5]
[419759335,1775358640154,-1800.02694516,0.0001277,2]
[419759336,1775358640175,-168959.25196062,0.0001277,2]
[419759337,1775358640184,-4874.91,0.0001277,2]
[419759338,1775358640194,-8086.37,0.00012772,2]
[419759339,1775358640203,-607.31182939,0.00012772,2]
[419759340,1775358640213,-500.0,0.00012772,2]
[419759341,1775358640222,-500.0,0.00012772,2]
[419759342,1775358640232,-500.0,0.00012772,2]
[419759343,1775358640243,-500.0,0.00012772,2]
[419759344,1775358640252,-476.16705547,0.00012772,2]
[419759345,1775358640262,-500.0,0.00012772,2]
[419759346,1775358640272,-500.0,0.00012772,2]
[419759347,1775358640282,-500.0,0.00012772,2]
[419759348,1775358640291,-500.0,0.00012772,2]
[419759349,1775358640301,-500.0,0.00012772,2]
[419759350,1775358640310,-500.0,0.00012772,2]
[419759351,1775358640320,-593.31552363,0.00012772,2]
[419759352,1775358640330,-350.0,0.00012772,2]
[419759353,1775358640339,-500.0,0.00012772,2]
[419759354,1775358640349,-500.0,0.00012772,2]
[419759355,1775358640358,-500.0,0.00012772,2]
[419759356,1775358640368,-500.0,0.00012772,2]
[419759357,1775358640377,-501.64648141,0.00012772,2]
[419759358,1775358640388,-500.0,0.00012773,2]
[419759359,1775358640397,-504.16046887,0.00012773,2]
[419759360,1775358640407,-501.4077327,0.00012773,2]
[419759361,1775358640417,-348.18515557,0.00012773,2]
[419759362,1775358640426,-500.0,0.00012773,2]
[419759363,1775358640436,-500.0,0.00012773,2]
[419759364,1775358640445,-500.0,0.00012773,2]
[419759365,1775358640455,-500.87960125,0.00012773,2]
[419759366,1775358640464,-501.03587191,0.00012773,2]
[419759367,1775358640474,-381.14774159,0.00012773,2]
[419759368,1775358640483,-500.0,0.00012773,2]
[419759369,1775358640493,-500.0,0.00012773,2]
[419759370,1775358640502,-500.37556055,0.00012773,2]
[419759371,1775358640512,-500.0,0.00012773,2]
[419759372,1775358640521,-500.0,0.00012773,2]
[419759373,1775358640533,-1000.0,0.00012773,2]
[419759374,1775358640543,-745681.9738,0.00012773,2]
[419759375,1775358640553,-500.0,0.00012773,2]
[419759376,1775358640563,-300.0,0.000128,4]
[419759377,1775358640572,-33032.4137,0.00012873,2]
[419759378,1775358640582,-600.0,0.000129,4]
[419759379,1775358640591,-311.80566085,0.00012989,2]
[419759380,1775358640600,-84914.69579609,0.00012999,2]
[419759381,1775358640610,-250.0,0.00013,2]
[419759382,1775358640619,-5651.24226969,0.00013,2]
[419759383,1775358640628,-1811.5322899,0.00013,15]
[419759384,1775358640638,-6531.8503442,0.00013029,2]
[419759385,1775358640647,-503.67960064,0.00013047,2]
[419759386,1775358640656,-5390.67222516,0.0001305,2]
[419759387,1775358640665,-5579.29094284,0.00013131,2]
[419759388,1775358640675,-1680.0,0.00013191,2]
[419759389,1775358640684,-200.0,0.00013313,2]
[419759390,1775358640693,-1000.0,0.00013321,2]
[419759391,1775358640702,-6531.8503442,0.00013388,2]
[419759392,1775358640713,-943.92,0.000134,2]
[419759394,1775358640722,-500.0,0.00013484,2]
[419759395,1775358640731,-533.6527,0.00013498,2]
[419759396,1775358640740,-5579.29094284,0.00013593,2]
[419759397,1775358640749,-151.0,0.00013595,2]
[419759398,1775358640758,-274.0820259,0.00013598,2]
[419759399,1775358640768,-9397.38121153,0.00013598,2]
[419759401,1775358640777,-982.40749698,0.00013598,2]
[419759402,1775358640786,-1500000.0,0.00013598,2]
[419759403,1775358640795,-500.0,0.00013698,2]
[419759404,1775358640804,-500.0,0.00013698,2]
[419759405,1775358640814,-500.0,0.00013698,2]
[419759406,1775358640823,-500.0,0.00013698,2]
[419759408,1775358640832,-500.0,0.00013698,2]
[419759410,1775358640842,-500.0,0.00013698,2]
[419759411,1775358640851,-500.0,0.00013698,2]
[419759412,1775358640860,-500.0,0.00013698,2]
[419759413,1775358640869,-500.0,0.00013698,2]
[419759414,1775358640878,-500.0,0.00013698,2]
[419759415,1775358640887,-500.0,0.00013698,2]
[419759416,1775358640897,-500.0,0.00013698,2]
[419759417,1775358640906,-474.028,0.00013698,2]
[419759418,1775358640915,-500.0,0.00013698,2]
[419759419,1775358640924,-500.0,0.00013698,2]
[419759420,1775358640934,-500.0,0.00013698,2]
[419759421,1775358640944,-500.0,0.00013698,2]
[419759422,1775358640952,-500.0,0.00013698,2]
[419759423,1775358640962,-500.0,0.00013698,2]
[419759424,1775358640971,-500.0,0.00013698,2]
[419759425,1775358640980,-500.0,0.00013698,2]
[419759426,1775358640989,-500.0,0.00013698,2]
[419759427,1775358640998,-518.75523557,0.00013698,2]
[419759428,1775358641010,-500.0,0.00013698,2]
[419759429,1775358641020,-500.0,0.00013698,2]
[419759430,1775358641029,-500.0,0.00013698,2]
[419759431,1775358641039,-500.0,0.00013698,2]
[419759432,1775358641048,-500.0,0.00013698,2]
[419759433,1775358641057,-500.0,0.00013698,2]
[419759434,1775358641066,-500.0,0.00013698,2]
[419759435,1775358641075,-500.0,0.00013698,2]
[419759436,1775358641085,-500.0,0.00013698,2]
[419759437,1775358641094,-500.0,0.00013698,2]
[419759438,1775358641103,-500.0,0.00013698,2]
[419759439,1775358641113,-500.0,0.00013698,2]
[419759440,1775358641122,-329.85622942,0.00013698,2]
[419759441,1775358641132,-500.0,0.00013698,2]
[419759442,1775358641142,-500.0,0.00013698,2]
[419759443,1775358641151,-500.0,0.00013698,2]
[419759444,1775358641161,-500.0,0.00013698,2]
[419759445,1775358641170,-500.0,0.00013698,2]
[419759446,1775358641181,-500.0,0.00013698,2]
[419759447,1775358641190,-500.0,0.00013698,2]
[419759448,1775358641208,-500.0,0.00013698,2]
[419759449,1775358641223,-500.0,0.00013698,2]
[419759450,1775358641233,-500.0,0.00013698,2]
[419759451,1775358641243,-500.0,0.00013698,2]
[419759452,1775358641254,-542.60917033,0.00013698,2]
[419759453,1775358641263,-500.0,0.00013698,2]
[419759454,1775358641273,-500.0,0.00013698,2]
[419759455,1775358641283,-500.0,0.00013698,2]
[419759456,1775358641292,-500.0,0.00013698,2]
[419759457,1775358641302,-500.0,0.00013698,2]
[419759458,1775358641312,-500.0,0.00013698,2]
[419759459,1775358641322,-500.0,0.00013698,2]
[419759460,1775358641331,-500.0,0.00013698,2]
[419759461,1775358641342,-500.0,0.00013698,2]
[419759462,1775358641352,-500.0,0.00013698,2]
[419759463,1775358641363,-500.0,0.00013698,2]
[419759464,1775358641372,-500.0,0.00013698,2]
[419759465,1775358641383,-500.0,0.00013698,2]
[419759466,1775358641392,-500.0,0.00013698,2]
[419759467,1775358641402,-520.65331997,0.00013698,2]
[419759468,1775358641412,-500.0,0.00013698,2]
[419759469,1775358641421,-500.0,0.00013698,2]
[419759470,1775358641436,-500.0,0.00013698,2]
[419759471,1775358641446,-500.0,0.00013698,2]
[419759472,1775358641455,-500.0,0.00013698,2]
[419759473,1775358641465,-500.0,0.00013698,2]
[419759474,1775358641475,-500.0,0.00013698,2]
[419759475,1775358641484,-500.0,0.00013698,2]
[419759476,1775358641494,-500.0,0.00013698,2]
[419759477,1775358641503,-500.0,0.00013698,2]
[419759478,1775358641513,-500.0,0.00013698,2]
[419759479,1775358641522,-585.5330066,0.00013698,2]
[419759480,1775358641532,-500.0,0.00013698,2]
[419759481,1775358641542,-500.0,0.00013698,2]
[419759482,1775358641552,-500.0,0.00013698,2]
[419759483,1775358641562,-500.0,0.00013698,2]
[419759484,1775358641572,-500.0,0.00013698,2]
[419759485,1775358641583,-500.0,0.00013698,2]
[419759486,1775358641593,-500.0,0.00013698,2]
[419759487,1775358641603,-500.0,0.00013698,2]
[419759488,1775358641612,-500.0,0.00013698,2]
[419759489,1775358641622,-500.0,0.00013698,2]
[419759490,1775358641631,-500.0,0.00013698,2]
[419759491,1775358641641,-500.0,0.00013698,2]
[419759492,1775358641651,-529.29006668,0.00013698,2]
[419759493,1775358641660,-500.0,0.00013698,2]
[419759494,1775358641670,-225.42319663,0.00013698,2]
[419759495,1775358641679,-500.0,0.00013698,2]
[419759496,1775358641689,-500.0,0.00013698,2]
[419759497,1775358641699,-500.0,0.00013698,2]
[419759498,1775358641710,-500.0,0.00013698,2]
[419759499,1775358641720,-500.0,0.00013698,2]
[419759500,1775358641730,-500.0,0.00013698,2]
[419759501,1775358641740,-500.0,0.00013698,2]
[419759502,1775358641750,-500.0,0.00013698,2]
[419759503,1775358641760,-500.0,0.00013698,2]
[419759504,1775358641770,-500.0,0.00013698,2]
[419759505,1775358641780,-500.0,0.00013698,2]
[419759506,1775358641789,-500.0,0.00013698,2]
[419759507,1775358641799,-500.0,0.00013698,2]
[419759508,1775358641809,-500.0,0.00013698,2]
[419759509,1775358641818,-500.0,0.00013698,2]
[419759510,1775358641828,-500.0,0.00013698,2]
[419759511,1775358641838,-500.0,0.00013698,2]
[419759512,1775358641848,-500.0,0.00013698,2]
[419759513,1775358641858,-569.21254605,0.00013698,2]
[419759514,1775358641867,-500.0,0.00013698,2]
[419759515,1775358641877,-500.0,0.00013698,2]
[419759516,1775358641887,-500.0,0.00013698,2]
[419759517,1775358641897,-500.0,0.00013698,2]
[419759518,1775358641906,-500.0,0.00013698,2]
[419759519,1775358641916,-500.0,0.00013698,2]
[419759520,1775358641926,-370.56974227,0.00013698,2]
[419759521,1775358641936,-500.0,0.00013698,2]
[419759522,1775358641945,-500.0,0.00013698,2]
[419759523,1775358641957,-500.0,0.00013698,2]
[419759524,1775358641967,-500.0,0.00013698,2]
[419759525,1775358641978,-500.0,0.00013698,2]
[419759526,1775358641988,-500.0,0.00013698,2]
[419759527,1775358641998,-500.0,0.00013698,2]
[419759528,1775358642010,-500.0,0.00013698,2]
[419759529,1775358642020,-500.0,0.00013698,2]
[419759530,1775358642031,-500.0,0.00013698,2]
[419759531,1775358642040,-824.43,0.00013698,2]
[419759532,1775358642051,-824.43,0.00013698,2]
[419759533,1775358642060,-824.43,0.00013698,2]
[419759534,1775358642070,-824.43,0.00013698,2]
[419759535,1775358642080,-824.43,0.00013698,2]
[419759536,1775358642090,-824.43,0.00013698,2]
[419759537,1775358642100,-824.43,0.00013698,2]
[419759538,1775358642110,-824.43,0.00013698,2]
[419759539,1775358642120,-824.43,0.00013698,2]
[419759540,1775358642129,-824.43,0.00013698,2]
[419759541,1775358642139,-150.0,0.00013699,2]
[419759542,1775358642149,-150.0,0.00013699,2]
[419759543,1775358642159,-150.0,0.00013699,2]
[419759544,1775358642168,-5919.34,0.00013699,2]
[419759545,1775358642179,-500.0,0.00013699,2]
[419759546,1775358642189,-500.0,0.00013699,2]
[419759547,1775358642199,-450.63286364,0.00013699,2]
[419759548,1775358642208,-500.0,0.00013699,2]
[419759549,1775358642218,-204.40114749,0.00013699,2]
[419759550,1775358642227,-229.70094032,0.00013699,2]
[419759551,1775358642237,-500.0,0.00013699,2]
[419759552,1775358642246,-500.0,0.00013699,2]
[419759553,1775358642256,-500.0,0.00013699,2]
[419759554,1775358642266,-500.0,0.00013699,2]
[419759555,1775358642276,-500.0,0.00013699,2]
[419759556,1775358642286,-500.0,0.00013699,2]
[419759557,1775358642296,-218.73,0.00013699,2]
[419759558,1775358642306,-381.52090227,0.00013699,2]
[419759559,1775358642315,-1000.0,0.00013699,2]
[419759560,1775358642326,-1001.03211684,0.00013699,15]
[419759561,1775358642337,-6531.8503442,0.00013747,2]
[419759562,1775358642348,-255.0,0.00013771,2]
[419759563,1775358642358,-1600.0,0.00013773,2]
[419759564,1775358642368,-900.0,0.000138,5]
[419759565,1775358642377,-1385.0,0.00013848,5]
[419759566,1775358642387,-203.96604798,0.00013861,2]
[419759567,1775358642397,-915.04157441,0.00013868,2]
[419759568,1775358642407,-200.0,0.000139,2]
[419759569,1775358642418,-200.0604195,0.000139,3]
[419759570,1775358642428,-1200.0,0.000139,5]
[419759571,1775358642439,-354.91904384,0.00013941,2]
[419759572,1775358642449,-150.0,0.00013973,2]
[419759574,1775358642459,-150.0,0.00013973,2]
[419759575,1775358642468,-1500.0,0.00014,2]
[419759576,1775358642478,-150.0,0.00014047,2]
[419759577,1775358642488,-5579.29094284,0.00014054,2]
[419759578,1775358642498,-218.0609158,0.00014082,2]
[419759579,1775358642508,-6531.8503442,0.00014106,2]
[419759580,1775358642518,-1752.27845808,0.00014152,2]
[419759581,1775358642527,-3634.19823712,0.00014152,2]
[419759582,1775358642539,-388.28545028,0.00014176,2]
[419759583,1775358642550,-500.0,0.00014189,2]
[419759584,1775358642560,-500.0,0.00014189,2]
[419759585,1775358642569,-500.0,0.00014189,2]
[419759586,1775358642578,-500.0,0.00014189,2]
[419759587,1775358642588,-500.0,0.00014189,2]
[419759588,1775358642597,-500.0,0.00014189,2]
[419759589,1775358642607,-500.0,0.00014189,2]
[419759590,1775358642618,-500.0,0.00014189,2]
[419759591,1775358642628,-500.0,0.00014189,2]
[419759592,1775358642638,-541.35699727,0.00014189,2]
[419759593,1775358642648,-707.60786028,0.00014234,2]
[419759594,1775358642658,-150.0,0.00014247,2]
[419759595,1775358642668,-150.0,0.00014247,2]
[419759596,1775358642677,-500.0,0.00014247,2]
[419759597,1775358642687,-1000.0,0.00014247,2]
[419759598,1775358642697,-1000.0,0.00014247,2]
[419759599,1775358642707,-1000.0,0.00014247,2]
[419759600,1775358642716,-1000.0,0.00014247,2]
[419759601,1775358642726,-1000.0,0.00014247,2]
[419759602,1775358642736,-1000.0,0.00014247,2]
[419759603,1775358642745,-1000.0,0.00014247,2]
[419759604,1775358642755,-1000.0,0.00014247,2]
[419759605,1775358642765,-155.8791393,0.00014378,2]
[419759606,1775358642774,-5919.34,0.00014384,2]
[419759607,1775358642784,-1500.0,0.00014445,2]
[419759608,1775358642793,-6531.8503442,0.00014464,2]
[419759609,1775358642803,-9636.2209415,0.00014466,2]
[419759610,1775358642812,-250.0,0.00014482,2]
[419759611,1775358642822,-2351.0,0.0001451,2]
[419759612,1775358642831,-5579.29094284,0.00014516,2]
[419759613,1775358642842,-1530.75,0.0001452,2]
[419759614,1775358642851,-2481.15,0.00014567,2]
[419759615,1775358642860,-160.9517,0.000146,2]
[419759616,1775358642870,-468.1434047,0.00014689,2]
[419759617,1775358642879,-160.9517,0.000147,2]
[419759618,1775358642889,-9397.38121153,0.00014749,2]
[419759619,1775358642898,-982.40749698,0.00014749,2]
[419759620,1775358642908,-500.0,0.00014795,2]
[419759621,1775358642917,-506.22994168,0.00014795,2]
[419759622,1775358642927,-1500.0,0.00014795,2]
[419759623,1775358642937,-1506.60866792,0.00014795,2]
[419759624,1775358642947,-1262.32183267,0.00014795,2]
[419759625,1775358642956,-1500.0,0.00014795,2]
[419759626,1775358642966,-1506.37622858,0.00014795,2]
[419759627,1775358642976,-1500.0,0.00014795,2]
[419759628,1775358642985,-1500.0,0.00014795,2]
[419759629,1775358642995,-160.9517,0.000148,2]
[419759630,1775358643005,-6531.8503442,0.00014823,2]
[419759631,1775358643014,-9636.2209415,0.00014824,2]
[419759632,1775358643025,-337.549059,0.00014879,7]
[419759633,1775358643035,-160.9517,0.000149,2]
[419759634,1775358643045,-289.56339563,0.00014908,2]
[419759635,1775358643055,-160.0,0.00014931,2]
[419759636,1775358643065,-433.0,0.00014975,2]
[419759637,1775358643075,-5579.29094284,0.00014977,2]
[419759638,1775358643085,-300.0,0.00015,2]
[419759639,1775358643095,-2067.27601646,0.00015,2]
[419759640,1775358643106,-8047.93487487,0.00015,2]
[419759641,1775358643116,-223458.98806615,0.00015,7]
[419759642,1775358643126,-5919.34,0.00015068,2]
[419759643,1775358643136,-800.96674089,0.00015068,2]
[419759644,1775358643147,-6531.8503442,0.00015182,2]
[419759645,1775358643156,-9636.2209415,0.00015183,2]
[419759646,1775358643167,-10000.0,0.00015205,2]
[419759647,1775358643177,-1517.64,0.000153,2]
[419759648,1775358643187,-1600.0,0.00015304,2]
[419759649,1775358643202,-350.0,0.00015337,2]
[419759650,1775358643212,-447.24942921,0.00015342,2]
[419759651,1775358643222,-947.77606198,0.00015342,2]
[419759652,1775358643232,-2000.0,0.00015342,2]
[419759654,1775358643243,-2011.94070983,0.00015342,2]
[419759655,1775358643253,-1891.53192442,0.00015342,2]
[419759657,1775358643263,-193.02350216,0.00015376,2]
[419759659,1775358643273,-512.60947705,0.000154,2]
[419759661,1775358643283,-5579.29094284,0.00015439,2]
[419759662,1775358643294,-5643.7200837,0.000155,3]
[419759663,1775358643304,-1231.52674065,0.000155,2]
[419759664,1775358643314,-2000.0,0.00015501,2]
[419759665,1775358643324,-6531.8503442,0.00015541,2]
[419759666,1775358643334,-9636.2209415,0.00015541,2]
[419759667,1775358643344,-2419.0,0.00015542,2]
[419759668,1775358643353,-156.43428545,0.00015549,2]
[419759669,1775358643362,-5376.0,0.00015573,2]
[419759670,1775358643371,-5376.0,0.00015599,2]
[419759671,1775358643381,-1688.92921047,0.000156,2]
[419759672,1775358643391,-1500.0,0.000156,5]
[419759673,1775358643400,-2000.0,0.00015601,2]
[419759674,1775358643410,-5376.0,0.00015628,2]
[419759675,1775358643420,-733.77686062,0.00015634,2]
[419759676,1775358643429,-5376.0,0.00015636,2]
[419759677,1775358643439,-1034.68258347,0.00015665,2]
[419759678,1775358643449,-300.0,0.000157,5]
[419759679,1775358643459,-2000.0,0.00015701,2]
[419759680,1775358643469,-408.0,0.00015726,2]
[419759681,1775358643479,-2419.0,0.00015738,2]
[419759682,1775358643490,-262.0,0.00015753,2]
[419759683,1775358643500,-5919.34,0.00015753,2]
[419759684,1775358643510,-528.0,0.00015756,2]
[419759685,1775358643520,-396.0,0.00015776,2]
[419759686,1775358643530,-151.39,0.00015779,2]
[419759687,1775358643540,-151.39,0.00015779,2]
[419759688,1775358643550,-151.39,0.00015779,2]
[419759689,1775358643560,-151.39,0.00015779,2]
[419759690,1775358643569,-262.60885396,0.00015782,2]
[419759691,1775358643579,-300.0,0.000158,5]
[419759692,1775358643588,-2000.0,0.00015801,2]
[419759693,1775358643598,-440.0,0.00015822,2]
[419759694,1775358643607,-440.0,0.0001583,2]
[419759695,1775358643617,-311.80566085,0.0001583,2]
[419759696,1775358643626,-97697.2091726,0.0001584,2]
[419759697,1775358643636,-166143.042,0.0001584,2]
[419759698,1775358643646,-662.0,0.00015857,2]
[419759699,1775358643655,-5376.0,0.00015867,2]
[419759700,1775358643664,-500.0,0.00015872,2]
[419759701,1775358643674,-2000.0,0.0001589,2]
[419759702,1775358643684,-599.51032893,0.0001589,2]
[419759703,1775358643694,-5000.0,0.000159,2]
[419759704,1775358643704,-25000.0,0.000159,3]
[419759705,1775358643714,-4594.73927756,0.000159,2]
[419759706,1775358643724,-150.0,0.000159,2]
[419759707,1775358643734,-177.24080314,0.000159,2]
[419759708,1775358643743,-6531.8503442,0.000159,2]
[419759709,1775358644086,-9636.2209415,0.000159,2]
[419759710,1775358644096,-300.0,0.000159,5]
[419759711,1775358644106,-150.0,0.000159,2]
[419759712,1775358644116,-9397.38121153,0.000159,2]
[419759713,1775358644126,-5579.29094284,0.000159,2]
[419759714,1775358644135,-982.40749698,0.000159,2]
[419759715,1775358644145,-396.0,0.00015907,2]
[419759716,1775358644154,-440.0,0.00015912,2]
[419759717,1775358644163,-5376.0,0.00015931,2]
[419759718,1775358644173,-225.3229734,0.00015951,2]
[419759719,1775358644182,-1337.87763051,0.00015956,2]
[419759720,1775358644192,-3292.0,0.00015961,2]
[419759721,1775358644201,-500.0,0.00015973,2]
[419759722,1775358644210,-503.05479874,0.00015973,2]
[419759723,1775358644220,-500.0,0.00015973,2]
[419759724,1775358644229,-440.0,0.00015974,2]
[419759725,1775358644238,-314.0,0.00015983,2]
[419759726,1775358644247,-440.0,0.00015983,2]
[419759727,1775358644256,-163.36980273,0.00015984,2]
[419759728,1775358644265,-311.80566085,0.0001599,2]
[419759729,1775358644275,-500.0,0.00015996,2]
[419759730,1775358644284,-500.0,0.00015996,2]
[419759731,1775358644294,-500.0,0.00015996,2]
[419759732,1775358644303,-500.0,0.00015996,2]
[419759733,1775358644314,-824.43,0.00015996,2]
[419759734,1775358644323,-167.927891,0.00015997,2]
[419759735,1775358644332,-197.2270079,0.00015997,2]